[Event "FIDE WCCC G10 2018"]
[Site "Santiago de Compostela"]
[Date "2018.11.09"]
[Round "5"]
[White "Chen, Yining"]
[Black "Khamdamova, Afruza"]
[Result "1-0"]
[ECO "D38"]
[WhiteElo "1457"]
[BlackElo "1691"]
[Annotator "NA RC"]
[PlyCount "95"]
[EventDate "2018.11.04"]
[EventType "swiss"]
[EventCountry "ESP"]
[SourceTitle "playchess.com"]
[Source "ChessBase"]
[SourceQuality "1"]
[TimeControl "40/5400+30:1800+30"]

1. d4 {[%emt 0:00:00]} Nf6 {[%emt 0:00:00]} 2. c4 {[%emt 0:00:00]} e6 {[%emt 0:00:00]} 3. Nf3 {[%emt 0:00:00]} d5 {[%emt 0:00:00]} 4. Nc3 {[%emt 0:00:00]} Bb4 {[%emt 0:00:00]} 5. Bg5 {[%emt 0:00:00]} O-O {[%emt 0:00:00]} 6. e3 {[%emt 0:00:00]} h6 {[%emt 0:00:12]} 7. Bxf6 {[%emt 0:00:08]} Qxf6 {[%emt 0:00:05]} 8. Qb3 {[%emt 0:00:06]} Bxc3+ {[%emt 0:00:18]} 9. bxc3 {[%emt 0:00:17]} c6 {[%emt 0:05:53]} 10. cxd5 {[%emt 0:03:56]} exd5 {[%emt 0:00:47]} 11. Bd3 {[%emt 0:02:45]} b6 {[%emt 0:02:55]} 12. O-O {[%emt 0:00:49]} Be6 {[%emt 0:01:20]} 13. Rac1 {[%emt 0:04:01]} Nd7 {[%emt 0:02:56]} 14. c4 {[%emt 0:02:47]} dxc4 {[%emt 0:06:32]} 15. Bxc4 {[%emt 0:00:07]} Bxc4 {[%emt 0:00:04]} 16. Qxc4 {[%emt 0:00:24]} c5 {[%emt 0:00:07]} 17. d5 {[%emt 0:05:32]} Ne5 {[%emt 0:02:19]} 18. Nxe5 {[%emt 0:00:29]} Qxe5 {[%emt 0:00:05]} 19. Rfe1 {[%emt 0:01:57]} f5 {[%emt 0:11:10]} 20. a4 {[%emt 0:04:03]} Rad8 {[%emt 0:03:53]} 21. Rcd1 {[%emt 0:02:31]} Rd6 {[%emt 0:00:11]} 22. f3 {[%emt 0:05:18]} Kh8 {[%emt 0:19:46]} 23. e4 {[%emt 0:08:02]} fxe4 {[%emt 0:00:09]} 24. Qxe4 {[%emt 0:05:44]} Qf6 {[%emt 0:00:58]} 25. Qe7 {[%emt 0:03:05]} Qxe7 {[%emt 0:05:41]} 26. Rxe7 {[%emt 0:00:03]} a5 {[%emt 0:01:25]} 27. Re6 {[%emt 0:04:08]} Rfd8 {[%emt 0:05:07]} 28. Rxd6 {[%emt 0:01:01]} Rxd6 {[%emt 0:00:05]} 29. Kf2 {[%emt 0:00:49]} Kg8 {[%emt 0:01:54]} 30. Ke3 {[%emt 0:00:19]} Kf7 {[%emt 0:00:06]} 31. Ke4 {[%emt 0:00:28]} Ke7 {[%emt 0:04:36]} 32. f4 {[%emt 0:01:07]} Rd8 {[%emt 0:05:49]} 33. Rb1 {[%emt 0:01:07]} Rb8 {[%emt 0:00:26]} 34. Ke5 {[%emt 0:00:48]} Kd7 {[%emt 0:02:09]} 35. d6 {[%emt 0:10:35]} Kc6 {[%emt 0:00:13]} 36. Ke6 {[%emt 0:00:44]} Rd8 {[%emt 0:00:09]} 37. Rd1 {[%emt 0:00:25]} c4 {[%emt 0:12:08]} 38. d7 {[%emt 0:11:14]} Kc5 {[%emt 0:02:52]} 39. Ke7 {[%emt 0:00:31]} Rxd7+ {[%emt 0:00:17]} 40. Kxd7 {[%emt 0:00:00]} Kb4 {[%emt 0:00:00]} 41. Kc6 {[%emt 0:01:58]} Kxa4 {[%emt 0:05:25]} 42. Kxb6 {[%emt 0:00:04]} c3 {[%emt 0:01:20]} 43. g4 {[%emt 0:02:31]} c2 {[%emt 0:01:23]} 44. Rc1 {[%emt 0:00:35]} Kb3 {[%emt 0:00:05]} 45. Kxa5 {[%emt 0:00:34]} Kb2 {[%emt 0:00:05]} 46. Rf1 {[%emt 0:00:09]} c1=Q {[%emt 0:00:06]} 47. Rxc1 {[%emt 0:00:03]} Kxc1 {[%emt 0:00:06]} 48. g5 {[%emt 0:00:06]} 1-0

[Event "FIDE WCCC G10 2018"]
[Site "Santiago de Compostela"]
[Date "2018.11.09"]
[Round "5"]
[White "Yildiz, Elif Zeren"]
[Black "Vu, My Linh"]
[Result "1-0"]
[ECO "B06"]
[WhiteElo "1448"]
[BlackElo "1349"]
[Annotator "NA RC"]
[PlyCount "101"]
[EventDate "2018.11.04"]
[EventType "swiss"]
[EventCountry "ESP"]
[SourceTitle "playchess.com"]
[Source "ChessBase"]
[SourceQuality "1"]
[TimeControl "40/5400+30:1800+30"]

1. e4 {[%emt 0:00:00]} g6 {[%emt 0:00:00]} 2. d4 {[%emt 0:00:00]} d6 {[%emt 0:00:00]} 3. Nc3 {[%emt 0:00:00]} Bg7 {[%emt 0:00:00]} 4. Be3 {[%emt 0:00:00]} Nf6 {[%emt 0:00:07]} 5. f3 {[%emt 0:00:14]} a6 {[%emt 0:00:29]} 6. Qd2 {[%emt 0:00:25]} b5 {[%emt 0:00:26]} 7. Bh6 Bf8 {[%emt 0:03:01]} 8. Bxf8 {[%emt 0:04:59]} Kxf8 {[%emt 0:00:28]} 9. Qh6+ {[%emt 0:01:52]} Kg8 {[%emt 0:01:27]} 10. O-O-O {[%emt 0:01:11]} Qf8 {[%emt 0:01:01]} 11. Qe3 {[%emt 0:01:27]} b4 {[%emt 0:02:46]} 12. Nce2 {[%emt 0:02:41]} a5 {[%emt 0:02:27]} 13. h4 {[%emt 0:05:58]} h5 {[%emt 0:00:59]} 14. Kb1 {[%emt 0:03:07]} Nbd7 {[%emt 0:02:41]} 15. Nh3 {[%emt 0:05:16]} a4 {[%emt 0:02:20]} 16. Nhf4 {[%emt 0:01:29]} e5 {[%emt 0:01:53]} 17. dxe5 {[%emt 0:01:40]} Nxe5 {[%emt 0:00:46]} 18. Nd4 {[%emt 0:03:38]} Bd7 {[%emt 0:02:40]} 19. Nd5 {[%emt 0:04:17]} Qd8 {[%emt 0:02:23]} 20. Be2 {[%emt 0:04:19]} Rb8 {[%emt 0:02:57]} 21. Rdf1 {[%emt 0:06:23]} c5 {[%emt 0:02:21]} 22. Nxf6+ {[%emt 0:08:36]} Qxf6 {[%emt 0:00:11]} 23. f4 {[%emt 0:00:13]} cxd4 {[%emt 0:00:23]} 24. Qxd4 {[%emt 0:00:26]} Ng4 {[%emt 0:00:09]} 25. e5 {[%emt 0:01:05]} Qe7 {[%emt 0:00:43]} 26. Bxg4 {[%emt 0:00:59]} Bxg4 {[%emt 0:00:48]} 27. exd6 {[%emt 0:00:21]} Qd7 {[%emt 0:00:45]} 28. Re1 {[%emt 0:00:41]} b3 {[%emt 0:01:33]} 29. Re7 {[%emt 0:02:04]} Qc6 {[%emt 0:04:36]} 30. Rhe1 {[%emt 0:06:14]} Rc8 {[%emt 0:03:21]} 31. c3 {[%emt 0:02:03]} bxa2+ {[%emt 0:01:27]} 32. Ka1 {[%emt 0:01:13]} a3 {[%emt 0:01:59]} 33. d7 {[%emt 0:05:57]} axb2+ {[%emt 0:02:14]} 34. Kxb2 {[%emt 0:02:13]} a1=Q+ {[%emt 0:01:54]} 35. Kxa1 {[%emt 0:00:43]} Ra8+ {[%emt 0:00:42]} 36. Kb2 {[%emt 0:00:37]} Rb8+ {[%emt 0:01:03]} 37. Kc1 {[%emt 0:00:58]} Bxd7 {[%emt 0:01:38]} 38. Rxd7 {[%emt 0:01:05]} Qa8 {[%emt 0:06:27]} 39. Qf6 {[%emt 0:06:09]} Qa3+ {[%emt 0:04:08]} 40. Kd2 {[%emt 0:00:00]} Qb2+ {[%emt 0:00:00]} 41. Ke3 {[%emt 0:02:59]} Qb3 {[%emt 0:06:58]} 42. Kf3 {[%emt 0:02:21]} Rc8 {[%emt 0:01:29]} 43. Re3 {[%emt 0:01:17]} Qc4 {[%emt 0:02:26]} 44. Kg3 {[%emt 0:04:18]} Qb3 {[%emt 0:03:25]} 45. Kh2 {[%emt 0:01:25]} Qc4 {[%emt 0:01:23]} 46. Re4 {[%emt 0:01:50]} Qa2 {[%emt 0:00:53]} 47. c4 {[%emt 0:01:00]} Rf8 {[%emt 0:00:59]} 48. Rxf7 {[%emt 0:00:39]} Rxf7 {[%emt 0:02:26]} 49. Re8+ {[%emt 0:00:20]} Rf8 {[%emt 0:00:07]} 50. Rxf8+ {[%emt 0:00:12]} Kh7 {[%emt 0:00:05]} 51. Rxh8# {[%emt 0:00:08]} 1-0

[Event "FIDE WCCC G10 2018"]
[Site "Santiago de Compostela"]
[Date "2018.11.09"]
[Round "5"]
[White "Cereijo Suarez, Nerea"]
[Black "Edithso, Samantha"]
[Result "0-1"]
[ECO "E81"]
[WhiteElo "1368"]
[BlackElo "1879"]
[Annotator "NA RC"]
[PlyCount "64"]
[EventDate "2018.11.04"]
[EventType "swiss"]
[EventCountry "ESP"]
[SourceTitle "playchess.com"]
[Source "ChessBase"]
[SourceQuality "1"]
[TimeControl "40/5400+30:1800+30"]

{[%evp 8,58,43,32767,27,32767,32767,32767,32767,32767,58,32767,51,46,43,35,41,38,45,39,47,-8,0,-22,-7,-23,-23,-12,0,-24,-29,-18,32767,0,32767,32767,32767,32767,0,32767,-95,-154,32767,-485,32767,-479,-479,-1891,-1927,-2608,32767,-29993,-29994]} 1. d4 {[%emt 0:00:00]} Nf6 {[%emt 0:00:00]} 2. c4 {[%emt 0:00:00]} g6 {[%emt 0:00:00]} 3. Nc3 {[%emt 0:00:18]} Bg7 {[%emt 0:00:00]} 4. e4 {[%emt 0:00:22]} d6 {[%emt 0:00:00]} 5. f3 {[%emt 0:00:12]} O-O {[%emt 0:00:13] LiveBook: 10621 Games} 6. Be3 {[%emt 0:00:13]} c6 {[%emt 0:01:01]} 7. Qd2 {[%emt 0:03:08]} e6 {[%emt 0:01:16] E81: King's Indian: Sämisch: 6th move deviations (including 6 Be3 c6)} (7... a6 8. Bd3 b5 9. Nge2 Nbd7 10. Rd1 Bb7 11. O-O bxc4 12. Bxc4 a5 13. Na4 Ba6 14. Bxa6 Rxa6 15. Rc1 Qa8 16. b3 Nb6 17. Nec3 Ne8 {0-1 (66) Gagunashvili,M (2588)-Jojua,D (2575) Tbilisi 2017}) 8. Nge2 {[%emt 0:05:38]} Nbd7 {[%emt 0:00:38]} 9. Nc1 {[%emt 0:05:17]} a5 $146 {[%emt 0:01:54]} ({Predecessor:} 9... b6 10. Be2 a5 11. O-O Ba6 12. b3 Qb8 13. Nd3 b5 14. cxb5 cxb5 15. Rac1 {1-0 (37) Liang,J (1754)-Rahman,K (1986) Hampstead 2013}) 10. Bd3 {[%emt 0:04:10]} e5 {[%emt 0:01:13]} 11. d5 {[%emt 0:00:26]} cxd5 {[%emt 0:00:56]} 12. cxd5 {[%emt 0:00:31]} b6 {[%emt 0:03:31]} 13. O-O {[%emt 0:04:07]} Nc5 {[%emt 0:00:36]} 14. Bxc5 {[%emt 0:04:13]} bxc5 {[%emt 0:00:17]} 15. a4 {[%emt 0:04:47]} Nh5 {[%emt 0:07:03]} 16. N1e2 {[%emt 0:04:15]} f5 {[%emt 0:03:11]} 17. Nb5 {[%emt 0:04:11]} f4 {[%emt 0:02:38]} 18. Nec3 {[%emt 0:06:07]} g5 {[%emt 0:03:34]} 19. Be2 {[%emt 0:05:10]} Nf6 {[%emt 0:01:26]} 20. g4 {[%emt 0:05:55]} fxg3 {[%emt 0:04:22]} 21. hxg3 {[%emt 0:00:09]} Bh3 {[%emt 0:03:47]} 22. Rfc1 {[%emt 0:01:30]} Nh5 {[%emt 0:06:11]} 23. g4 {[%emt 0:03:02]} Nf4 {[%emt 0:00:22]} 24. Bf1 {[%emt 0:04:02]} (24. Nd1 $15) 24... h5 {[%emt 0:01:41]} 25. gxh5 $2 {[%emt 0:03:00]} (25. Ne2 hxg4 26. Nxf4 Rxf4 27. Bxh3 gxh3 28. Rc3) 25... g4 {[%emt 0:00:41]} 26. Qh2 {[%emt 0:07:20]} Qh4 {[%emt 0:01:43]} 27. Bxh3 {[%emt 0:03:00]} (27. Rc2 $142 Rad8 28. Nc7) 27... Nxh3+ {[%emt 0:02:36]} 28. Kh1 {[%emt 0:00:19]} g3 {[%emt 0:00:14]} 29. Qg2 {[%emt 0:02:17]} Nf4+ {[%emt 0:00:07]} 30. Kg1 {[%emt 0:00:05]} Nxg2 {[%emt 0:00:05]} 31. Kxg2 {[%emt 0:00:08]} Qh2+ {[%emt 0:00:06]} 32. Kf1 {[%emt 0:00:03]} Qf2# {[%emt 0:00:07]} 0-1

[Event "FIDE WCCC G10 2018"]
[Site "Santiago de Compostela"]
[Date "2018.11.09"]
[Round "5"]
[White "Qu, Greta"]
[Black "Wu, Abbie"]
[Result "1-0"]
[ECO "B30"]
[WhiteElo "1360"]
[BlackElo "1446"]
[Annotator "NA RC"]
[PlyCount "111"]
[EventDate "2018.11.04"]
[EventType "swiss"]
[EventCountry "ESP"]
[SourceTitle "playchess.com"]
[Source "ChessBase"]
[SourceQuality "1"]
[TimeControl "40/5400+30:1800+30"]

1. e4 {[%emt 0:00:00]} c5 {[%emt 0:00:00]} 2. Nf3 {[%emt 0:00:00]} Nc6 {[%emt 0:00:00]} 3. Bb5 {[%emt 0:00:07]} a6 {[%emt 0:00:21]} 4. Bxc6 {[%emt 0:00:49]} dxc6 {[%emt 0:00:09]} 5. O-O {[%emt 0:01:00]} g6 {[%emt 0:00:42]} 6. Re1 {[%emt 0:01:49]} Bg7 {[%emt 0:00:45]} 7. Nc3 {[%emt 0:01:32]} e5 {[%emt 0:01:09]} 8. d3 {[%emt 0:00:52]} Qe7 {[%emt 0:01:37]} 9. Be3 {[%emt 0:01:02]} Nf6 {[%emt 0:00:49]} 10. h3 {[%emt 0:01:10]} Nd7 {[%emt 0:01:49]} 11. Qd2 {[%emt 0:01:18]} Nf8 {[%emt 0:00:24]} 12. Na4 {[%emt 0:05:31]} Ne6 {[%emt 0:03:12]} 13. Nb6 {[%emt 0:03:02]} Rb8 {[%emt 0:00:19]} 14. a4 {[%emt 0:03:17]} O-O {[%emt 0:01:32]} 15. a5 {[%emt 0:04:43]} Nd4 {[%emt 0:04:05]} 16. Nxd4 {[%emt 0:02:42]} cxd4 {[%emt 0:00:10]} 17. Bg5 {[%emt 0:00:12]} f6 {[%emt 0:00:42]} 18. Bh6 {[%emt 0:01:48]} Be6 {[%emt 0:00:56]} 19. Bxg7 {[%emt 0:00:21]} Kxg7 {[%emt 0:01:25]} 20. Qe2 {[%emt 0:08:31]} Rbe8 {[%emt 0:02:30]} 21. Qf3 {[%emt 0:04:11]} Qc5 {[%emt 0:02:50]} 22. Qe2 {[%emt 0:00:27]} f5 {[%emt 0:04:30]} 23. exf5 {[%emt 0:02:19]} Bxf5 {[%emt 0:00:11]} 24. g4 {[%emt 0:03:22]} Be6 {[%emt 0:08:50]} 25. Qxe5+ {[%emt 0:00:14]} Qxe5 {[%emt 0:00:07]} 26. Rxe5 {[%emt 0:00:02]} Bg8 {[%emt 0:09:04]} 27. Rae1 {[%emt 0:01:13]} Kf7 {[%emt 0:03:14]} 28. Nd7 {[%emt 0:02:58]} Rxe5 {[%emt 0:06:17]} 29. Rxe5 {[%emt 0:00:48]} Rd8 {[%emt 0:01:03]} 30. Nc5 {[%emt 0:00:23]} Kf6 {[%emt 0:00:46]} 31. f4 {[%emt 0:04:14]} Rd5 {[%emt 0:04:00]} 32. Rxd5 {[%emt 0:00:35]} Bxd5 {[%emt 0:00:07]} 33. Nxb7 {[%emt 0:00:17]} Ke6 {[%emt 0:01:18]} 34. Nc5+ {[%emt 0:00:25]} Kd6 {[%emt 0:00:05]} 35. Nxa6 {[%emt 0:01:18]} c5 {[%emt 0:00:12]} 36. b4 {[%emt 0:00:08]} cxb4 {[%emt 0:00:24]} 37. Nxb4 {[%emt 0:00:04]} Ba8 {[%emt 0:00:25]} 38. Na2 {[%emt 0:02:57]} Bd5 {[%emt 0:00:23]} 39. Nc1 {[%emt 0:00:15]} Bf3 {[%emt 0:01:04]} 40. Nb3 {[%emt 0:00:00]} Bb7 {[%emt 0:00:00]} 41. Nxd4 {[%emt 0:01:03]} Kd5 {[%emt 0:01:42]} 42. Nb3 {[%emt 0:00:12]} Ba6 {[%emt 0:01:41]} 43. Kf2 {[%emt 0:00:36]} Bc8 {[%emt 0:00:56]} 44. Ke3 {[%emt 0:00:53]} Ba6 {[%emt 0:01:04]} 45. c4+ {[%emt 0:00:13]} Kd6 {[%emt 0:00:11]} 46. Kd4 {[%emt 0:00:59]} Ke6 {[%emt 0:01:08]} 47. Nc5+ {[%emt 0:00:06]} Kd6 {[%emt 0:00:18]} 48. Nxa6 {[%emt 0:00:04]} Kc6 {[%emt 0:00:08]} 49. f5 {[%emt 0:00:05]} g5 {[%emt 0:00:08]} 50. f6 {[%emt 0:00:02]} h5 {[%emt 0:00:09]} 51. f7 {[%emt 0:00:03]} hxg4 {[%emt 0:00:07]} 52. f8=Q {[%emt 0:00:06]} Kb7 {[%emt 0:00:10]} 53. Nc5+ {[%emt 0:00:03]} Ka7 {[%emt 0:00:09]} 54. a6 {[%emt 0:00:11]} g3 {[%emt 0:00:09]} 55. Qf3 {[%emt 0:00:07]} g4 {[%emt 0:00:13]} 56. Qb7# {[%emt 0:00:07]} 1-0

[Event "FIDE WCCC G10 2018"]
[Site "Santiago de Compostela"]
[Date "2018.11.09"]
[Round "5"]
[White "Unurzul, Davaakhuu"]
[Black "Rouda Essa, Alserkal"]
[Result "1-0"]
[ECO "B77"]
[WhiteElo "1342"]
[BlackElo "1635"]
[Annotator "NA RC"]
[PlyCount "57"]
[EventDate "2018.11.04"]
[EventType "swiss"]
[EventCountry "ESP"]
[SourceTitle "playchess.com"]
[Source "ChessBase"]
[SourceQuality "1"]
[TimeControl "40/5400+30:1800+30"]

1. e4 {[%emt 0:00:00]} c5 {[%emt 0:00:05]} 2. Nf3 {[%emt 0:00:00]} d6 {[%emt 0:00:28]} 3. d4 {[%emt 0:01:11]} cxd4 {[%emt 0:00:30]} 4. Nxd4 {[%emt 0:00:41]} Nf6 {[%emt 0:00:30]} 5. Nc3 {[%emt 0:00:34]} g6 {[%emt 0:00:32]} 6. Be3 {[%emt 0:00:56]} Bg7 {[%emt 0:00:27]} 7. f3 {[%emt 0:00:38]} O-O {[%emt 0:00:32]} 8. Bc4 {[%emt 0:01:02]} Nc6 {[%emt 0:01:02]} 9. Qd2 {[%emt 0:00:22]} Nd7 {[%emt 0:00:46]} 10. O-O-O {[%emt 0:00:56]} Nb6 {[%emt 0:01:36]} 11. Bb3 {[%emt 0:05:03]} Na5 {[%emt 0:00:20]} 12. Qd3 {[%emt 0:07:20]} Nxb3+ {[%emt 0:04:08]} 13. Nxb3 {[%emt 0:00:42]} Bd7 {[%emt 0:03:01]} 14. g4 {[%emt 0:00:30]} Rc8 {[%emt 0:00:30]} 15. Bd4 {[%emt 0:04:42]} Bxd4 {[%emt 0:31:15]} 16. Qxd4 {[%emt 0:02:07]} Rc4 {[%emt 0:00:45]} 17. Qe3 {[%emt 0:00:25]} Qc7 {[%emt 0:05:23]} 18. h4 {[%emt 0:00:31]} Na4 {[%emt 0:05:30]} 19. Rd3 {[%emt 0:03:21]} Rc8 {[%emt 0:02:52]} 20. Nxa4 {[%emt 0:02:24]} Rxc2+ {[%emt 0:01:01]} 21. Kb1 {[%emt 0:00:16]} Bxa4 {[%emt 0:00:25]} 22. h5 {[%emt 0:00:50]} Bb5 {[%emt 0:02:52]} 23. Rd2 {[%emt 0:02:39]} Ba4 {[%emt 0:14:51]} 24. Rdd1 {[%emt 0:00:23]} Bxb3 {[%emt 0:02:14]} 25. Qxb3 {[%emt 0:08:44]} b6 {[%emt 0:09:15]} 26. hxg6 {[%emt 0:01:36]} hxg6 {[%emt 0:00:06]} 27. f4 {[%emt 0:00:26]} Qc4 {[%emt 0:00:26]} 28. Qh3 {[%emt 0:02:38]} e6 {[%emt 0:04:14]} 29. Qh8# {[%emt 0:00:07]} 1-0

[Event "FIDE WCCC G10 2018"]
[Site "Santiago de Compostela"]
[Date "2018.11.09"]
[Round "5"]
[White "Zavivaeva, Evelina"]
[Black "Sureda Gonzalez, Cristina"]
[Result "0-1"]
[ECO "B31"]
[WhiteElo "1323"]
[BlackElo "1422"]
[Annotator "NA RC"]
[PlyCount "48"]
[EventDate "2018.11.04"]
[EventType "swiss"]
[EventCountry "ESP"]
[SourceTitle "playchess.com"]
[Source "ChessBase"]
[SourceQuality "1"]
[TimeControl "40/5400+30:1800+30"]

1. e4 {[%emt 0:00:00]} c5 {[%emt 0:00:00]} 2. Nf3 {[%emt 0:00:00]} Nc6 {[%emt 0:00:00]} 3. Bb5 {[%emt 0:00:35]} g6 {[%emt 0:02:09]} 4. Bxc6 {[%emt 0:02:42]} bxc6 {[%emt 0:00:30]} 5. c4 {[%emt 0:09:55]} Bg7 {[%emt 0:03:55]} 6. Nc3 {[%emt 0:01:35]} Bb7 {[%emt 0:01:33]} 7. d3 {[%emt 0:03:51]} e6 {[%emt 0:03:35]} 8. O-O {[%emt 0:02:26]} d5 {[%emt 0:01:31]} 9. exd5 {[%emt 0:03:35]} cxd5 {[%emt 0:01:58]} 10. cxd5 {[%emt 0:08:22]} exd5 {[%emt 0:01:33]} 11. Bf4 {[%emt 0:09:56]} Ne7 {[%emt 0:04:11]} 12. Qb3 {[%emt 0:15:18]} Bc6 {[%emt 0:06:38]} 13. Ne5 {[%emt 0:07:21]} O-O {[%emt 0:03:05]} 14. Nxc6 {[%emt 0:01:09]} Nxc6 {[%emt 0:00:20]} 15. Qxd5 {[%emt 0:05:45]} Qxd5 {[%emt 0:05:30]} 16. Nxd5 {[%emt 0:01:34]} Bxb2 {[%emt 0:00:59]} 17. Rab1 {[%emt 0:01:48]} Be5 {[%emt 0:01:46]} 18. Be3 {[%emt 0:18:19]} Rfd8 {[%emt 0:02:09]} 19. Nf4 {[%emt 0:03:40]} Bxf4 {[%emt 0:01:10]} 20. Bxf4 {[%emt 0:00:10]} Rxd3 {[%emt 0:00:29]} 21. Rbc1 {[%emt 0:01:38]} Rd5 {[%emt 0:01:03]} 22. Be3 {[%emt 0:00:44]} Nd4 {[%emt 0:02:03]} 23. Bxd4 {[%emt 0:00:27]} cxd4 {[%emt 0:00:18]} 24. Rfd1 {[%emt 0:00:29]} Rad8 0-1

[Event "FIDE WCCC G10 2018"]
[Site "Santiago de Compostela"]
[Date "2018.11.09"]
[Round "5"]
[White "Abdinova, Narmin"]
[Black "Shvedova, Alexandra"]
[Result "1/2-1/2"]
[ECO "B22"]
[WhiteElo "1320"]
[BlackElo "1782"]
[Annotator "NA RC"]
[PlyCount "74"]
[EventDate "2018.11.04"]
[EventType "swiss"]
[EventCountry "ESP"]
[SourceTitle "playchess.com"]
[Source "ChessBase"]
[SourceQuality "1"]
[TimeControl "40/5400+30:1800+30"]

1. e4 {[%emt 0:00:00]} c5 {[%emt 0:00:00]} 2. c3 {[%emt 0:00:00]} Nf6 {[%emt 0:00:10]} 3. e5 {[%emt 0:00:00]} Nd5 {[%emt 0:00:08]} 4. Bc4 {[%emt 0:00:00]} Nb6 {[%emt 0:04:14]} 5. Bb3 {[%emt 0:00:06]} Nc6 {[%emt 0:00:53]} 6. d4 {[%emt 0:01:00]} cxd4 {[%emt 0:01:32]} 7. cxd4 {[%emt 0:00:24]} g6 {[%emt 0:01:30]} 8. Nf3 {[%emt 0:02:59]} Bg7 {[%emt 0:00:43]} 9. O-O {[%emt 0:01:20]} O-O {[%emt 0:00:21]} 10. Nc3 {[%emt 0:00:26]} d6 {[%emt 0:01:51]} 11. exd6 {[%emt 0:04:25]} Bg4 {[%emt 0:05:19]} 12. dxe7 {[%emt 0:03:24]} Qxe7 {[%emt 0:02:25]} 13. Be3 {[%emt 0:03:53]} Nxd4 {[%emt 0:11:32]} 14. Bxd4 {[%emt 0:00:34]} Bxf3 {[%emt 0:04:33]} 15. Qxf3 {[%emt 0:01:47]} Bxd4 {[%emt 0:00:11]} 16. Nd5 {[%emt 0:02:44]} Nxd5 {[%emt 0:07:04]} 17. Bxd5 {[%emt 0:00:14]} Rab8 {[%emt 0:01:12]} 18. Rab1 {[%emt 0:01:38]} Rfe8 {[%emt 0:09:21]} 19. Rfd1 {[%emt 0:02:33]} Bxb2 {[%emt 0:06:11]} 20. Bxf7+ {[%emt 0:02:06]} Qxf7 {[%emt 0:00:14]} 21. Qxf7+ {[%emt 0:00:06]} Kxf7 {[%emt 0:00:05]} 22. Rxb2 {[%emt 0:01:35]} Re7 {[%emt 0:01:15]} 23. f3 {[%emt 0:01:17]} Rc8 {[%emt 0:02:48]} 24. Rbd2 {[%emt 0:01:09]} b6 {[%emt 0:04:21]} 25. Kf2 {[%emt 0:02:10]} Rc5 {[%emt 0:03:51]} 26. Rd7 {[%emt 0:05:13]} Ra5 {[%emt 0:04:31]} 27. Rxe7+ {[%emt 0:02:47]} Kxe7 {[%emt 0:00:05]} 28. Rd2 {[%emt 0:00:10]} b5 {[%emt 0:01:52]} 29. Ke1 {[%emt 0:00:28]} a6 {[%emt 0:02:17]} 30. Kd1 {[%emt 0:01:06]} Ra4 {[%emt 0:00:26]} 31. Kc1 {[%emt 0:01:31]} Rh4 {[%emt 0:02:14]} 32. g3 {[%emt 0:01:05]} Rb4 {[%emt 0:01:49]} 33. Rb2 {[%emt 0:03:55]} Ra4 {[%emt 0:01:06]} 34. Rd2 {[%emt 0:00:21]} a5 {[%emt 0:02:51]} 35. Kb2 {[%emt 0:00:28]} Rb4+ {[%emt 0:00:30]} 36. Kc3 {[%emt 0:02:04]} Rc4+ {[%emt 0:00:57]} 37. Kb2 {[%emt 0:01:59]} Rb4+ {[%emt 0:02:01]} 1/2-1/2

[Event "FIDE WCCC G10 2018"]
[Site "Santiago de Compostela"]
[Date "2018.11.09"]
[Round "5"]
[White "Chekhani, Anna"]
[Black "Stoll, Lucia"]
[Result "1-0"]
[ECO "A01"]
[WhiteElo "1288"]
[BlackElo "1369"]
[Annotator "NA RC"]
[PlyCount "121"]
[EventDate "2018.11.04"]
[EventType "swiss"]
[EventCountry "ESP"]
[SourceTitle "playchess.com"]
[Source "ChessBase"]
[SourceQuality "1"]
[TimeControl "40/5400+30:1800+30"]

1. b3 {[%emt 0:00:00]} e5 {[%emt 0:00:53]} 2. Bb2 {[%emt 0:00:00]} Nc6 {[%emt 0:00:40]} 3. e3 {[%emt 0:00:17]} Nf6 {[%emt 0:00:35]} 4. Bb5 Bd6 {[%emt 0:02:20]} 5. Na3 {[%emt 0:00:58]} Na5 {[%emt 0:02:30]} 6. Nf3 {[%emt 0:09:32]} a6 {[%emt 0:04:57]} 7. Be2 {[%emt 0:00:30]} e4 {[%emt 0:01:39]} 8. Ne5 {[%emt 0:00:50]} b5 {[%emt 0:03:22]} 9. f4 {[%emt 0:08:28]} O-O {[%emt 0:06:18]} 10. c4 {[%emt 0:15:34]} c6 {[%emt 0:09:37]} 11. O-O {[%emt 0:02:10]} Re8 {[%emt 0:01:05]} 12. Nc2 {[%emt 0:02:39]} Bf8 {[%emt 0:03:25]} 13. cxb5 {[%emt 0:23:48]} axb5 {[%emt 0:01:00]} 14. b4 Nb7 {[%emt 0:02:28]} 15. a3 {[%emt 0:03:00]} Qb6 {[%emt 0:15:52]} 16. Nd4 {[%emt 0:05:06]} Nd5 {[%emt 0:03:41]} 17. Qb3 {[%emt 0:05:15]} f6 {[%emt 0:03:57]} 18. Ng4 {[%emt 0:03:11]} Kh8 {[%emt 0:00:45]} 19. Nxb5 {[%emt 0:03:01]} d6 {[%emt 0:10:07]} 20. Nc3 {[%emt 0:02:00]} Ne7 {[%emt 0:10:26]} 21. Rac1 {[%emt 0:10:24]} Nc5 {[%emt 0:05:43]} 22. Qc2 {[%emt 0:01:58]} Nd7 {[%emt 0:05:40]} 23. Nxe4 {[%emt 0:01:10]} Ng6 {[%emt 0:01:58]} 24. Ng3 {[%emt 0:00:50]} Bb7 {[%emt 0:00:44]} 25. Kh1 {[%emt 0:00:26]} Rac8 {[%emt 0:01:00]} 26. Bd3 {[%emt 0:00:08]} Nh4 {[%emt 0:01:21]} 27. Nf5 {[%emt 0:00:32]} Ng6 28. Bd4 {[%emt 0:00:53]} c5 {[%emt 0:00:53]} 29. bxc5 {[%emt 0:00:05]} dxc5 30. Bb2 {[%emt 0:00:36]} Qc6 {[%emt 0:00:44]} 31. e4 {[%emt 0:00:43]} Red8 {[%emt 0:00:50]} 32. Nge3 {[%emt 0:00:41]} Nb6 {[%emt 0:00:27]} 33. Nc4 {[%emt 0:00:31]} Nxc4 {[%emt 0:00:20]} 34. Qxc4 {[%emt 0:00:07]} Rxd3 {[%emt 0:00:19]} 35. Qxd3 {[%emt 0:00:11]} Ba6 {[%emt 0:00:06]} 36. Qf3 {[%emt 0:01:06]} Bxf1 {[%emt 0:00:08]} 37. Rxf1 {[%emt 0:00:03]} Qb5 {[%emt 0:00:45]} 38. Bc3 {[%emt 0:00:53]} Ne7 {[%emt 0:01:05]} 39. Nd6 {[%emt 0:00:17]} Qc6 {[%emt 0:00:34]} 40. Nxc8 {[%emt 0:00:00]} Qxc8 {[%emt 0:00:00]} 41. e5 {[%emt 0:12:11]} f5 {[%emt 0:01:33]} 42. Rb1 {[%emt 0:03:40]} Nc6 {[%emt 0:01:39]} 43. Qd5 {[%emt 0:03:07]} Qa6 {[%emt 0:02:47]} 44. Qf7 {[%emt 0:01:25]} Qa8 {[%emt 0:03:13]} 45. Rb7 {[%emt 0:02:50]} Ne7 {[%emt 0:00:24]} 46. Rxe7 {[%emt 0:00:42]} Bxe7 {[%emt 0:00:24]} 47. Qxe7 {[%emt 0:00:10]} h6 {[%emt 0:01:01]} 48. e6 {[%emt 0:00:03]} Qg8 {[%emt 0:00:18]} 49. Qf7 {[%emt 0:00:01]} c4 {[%emt 0:00:34]} 50. Qxg8+ {[%emt 0:00:05]} Kxg8 {[%emt 0:00:22]} 51. a4 {[%emt 0:00:09]} Kf8 {[%emt 0:00:12]} 52. a5 {[%emt 0:00:02]} Ke7 {[%emt 0:00:21]} 53. a6 {[%emt 0:00:02]} Kxe6 {[%emt 0:00:15]} 54. a7 {[%emt 0:00:04]} Kd6 {[%emt 0:00:12]} 55. a8=Q {[%emt 0:00:08]} Ke6 {[%emt 0:00:05]} 56. Qc6+ {[%emt 0:00:23]} Kf7 {[%emt 0:02:34]} 57. Qxc4+ {[%emt 0:00:03]} Ke7 {[%emt 0:00:11]} 58. Qc6 {[%emt 0:00:09]} Kd8 {[%emt 0:00:12]} 59. Qb7 {[%emt 0:00:14]} Ke8 {[%emt 0:00:07]} 60. Qc7 {[%emt 0:00:08]} Kf8 {[%emt 0:00:03]} 61. Qd7 {[%emt 0:00:47]} 1-0